bitfinex/quotes_SOLUSD_20240530
["timestamp","ask_amount","ask_price","bid_price","bid_amount"]
[1717034336061,2.1953,168.54,168.51,6.77]
[1717034336564,2.1952,168.55,168.51,6.77]
[1717034337181,2.1952,168.55,168.51,8.9656]
[1717034337383,2.1952,168.55,168.51,6.77]
[1717034340595,2.1952,168.55,168.51,8.9657]
[1717034342280,2.1952,168.55,168.51,2.1957]
[1717034342591,2.1952,168.55,168.5,2.1957]
[1717034342899,2.1952,168.55,168.5,8.9657]
[1717034344176,2.1952,168.55,168.5,2.1957]
[1717034345071,8.6129,168.55,168.5,2.1957]
[1717034346986,2.1951,168.56,168.51,2.1956]
[1717034347306,19.31728125,168.56,168.51,2.1956]
[1717034347479,2.1951,168.56,168.51,2.1956]
[1717034349192,2.1951,168.55,168.51,2.1956]
[1717034349883,2.1951,168.55,168.51,3.39895496]
[1717034351201,2.1951,168.55,168.51,2.1956]
[1717034351403,2.1951,168.55,168.5,2.1957]
[1717034352396,2.1951,168.55,168.51,2.1957]
[1717034355497,2.1951,168.55,168.51,3.108297]
[1717034355694,21.51180013,168.58,168.51,3.108297]
[1717034355695,2.1951,168.56,168.51,3.108297]
[1717034356997,19.31695675,168.56,168.51,3.108297]
[1717034357217,2.1951,168.56,168.51,3.108297]
[1717034357403,17.12185675,168.55,168.51,3.108297]
[1717034357606,2.1951,168.56,168.51,3.108297]
[1717034359597,2.1951,168.56,168.52,6.623]
[1717034359797,21.51155675,168.58,168.53,6.77]
[1717034359798,2.1949,168.57,168.53,6.77]
[1717034360299,19.31675675,168.57,168.53,6.77]
[1717034360503,2.1949,168.57,168.53,6.77]
[1717034361584,2.1949,168.57,168.54,1.34579855]
[1717034361787,2.195,168.56,168.54,1.34579855]
[1717034361996,17.12185675,168.58,168.54,8.11579855]
[1717034362191,2.1949,168.57,168.53,6.77]
[1717034363306,2.1949,168.57,168.52,15.5885]
[1717034363909,2.195,168.56,168.52,15.5885]
[1717034365208,2.195,168.56,168.53,6.77]
[1717034365601,2.195,168.57,168.53,6.77]
[1717034369918,19.31665675,168.58,168.53,8.9654]
[1717034373120,2.1949,168.57,168.53,8.9654]
[1717034376332,2.1949,168.57,168.54,6.77]
[1717034379637,21.50764741,168.6,168.54,6.77]
[1717034379638,2.1948,168.58,168.54,6.77]
[1717034381233,2.1949,168.57,168.54,6.77]
[1717034381441,2.1949,168.57,168.53,8.9654]
[1717034381934,2.1949,168.57,168.53,6.77]
[1717034384136,2.1949,168.57,168.52,8.8185]
[1717034384347,2.1949,168.57,168.53,6.77]
[1717034385143,2.1949,168.57,168.53,8.9654]
[1717034387139,2.1949,168.57,168.52,8.9655]
[1717034388437,2.1948,168.58,168.53,2.1954]
[1717034388835,2.1949,168.57,168.53,2.1954]
[1717034389448,2.1948,168.58,168.53,2.1954]
[1717034389757,2.1949,168.57,168.53,2.1954]
[1717034390936,2.1949,168.57,168.52,8.9655]
[1717034391143,2.1949,168.57,168.53,2.1954]
[1717034392838,2.1949,168.57,168.52,2.1955]
[1717034393743,2.1951,168.56,168.48,6.0812]
[1717034393942,2.1951,168.56,168.51,2.1956]
[1717034396557,17.12023671,168.57,168.52,2.1955]
[1717034396749,19.31513671,168.57,168.52,2.1955]
[1717034397258,19.31513671,168.57,168.52,8.9655]
[1717034398244,17.12023671,168.57,168.53,2.1954]
[1717034398450,17.12023671,168.56,168.52,8.9655]
[1717034398647,2.1949,168.57,168.53,6.77]
[1717034400259,2.1949,168.57,168.52,8.9655]
[1717034401550,19.31503671,168.58,168.53,9.47113537]
[1717034401762,19.31503671,168.58,168.54,6.77]
[1717034401959,2.1948,168.58,168.54,6.77]
[1717034403067,2.1947,168.59,168.54,8.9652]
[1717034403248,2.1946,168.6,168.55,8.9651]
[1717034403449,2.1946,168.59,168.55,8.9651]
[1717034403656,2.1946,168.59,168.55,6.77]
[1717034404559,2.1946,168.59,168.54,2.1952]
[1717034404865,2.1946,168.59,168.55,8.9651]
[1717034405060,2.1946,168.59,168.55,6.77]
[1717034405666,2.1945,168.6,168.55,8.9651]
[1717034406975,2.1945,168.6,168.56,1.1862172]
[1717034407872,2.1946,168.59,168.56,1.1862172]
[1717034408160,2.1946,168.59,168.56,7.9562172]
[1717034408366,2.1944,168.61,168.58,6.77]
[1717034408561,2.1943,168.62,168.59,0.50189642]
[1717034409748,2.1941,168.63,168.59,0.50189642]
[1717034410169,2.1941,168.63,168.59,9.46649644]
[1717034410976,2.1941,168.63,168.6,1.6873342]
[1717034412249,2.1941,168.63,168.59,6.77]
[1717034412443,2.1941,168.63,168.6,1.6868338]
[1717034413067,2.1941,168.63,168.59,6.77]
[1717034415468,2.1941,168.63,168.58,8.9647]
[1717034415671,2.1946,168.6,168.54,6.1852]
[1717034415862,2.1947,168.59,168.55,6.77]
[1717034416474,2.1946,168.6,168.55,8.9651]
[1717034416951,2.1947,168.59,168.54,2.1952]
[1717034417280,2.1948,168.58,168.53,2.1953]
[1717034417672,2.1947,168.59,168.54,2.1953]
[1717034417850,20.0,168.61,168.55,2.1951]
[1717034418050,2.1946,168.6,168.56,8.965]
[1717034418266,2.1944,168.61,168.56,8.965]
[1717034418651,2.1944,168.61,168.56,15.286]
[1717034418856,2.1944,168.61,168.57,6.77]
[1717034419076,2.1943,168.62,168.58,6.77]
[1717034419256,2.1943,168.62,168.57,2.1948]
[1717034419257,2.1943,168.62,168.57,8.9648]
[1717034419462,2.1944,168.61,168.57,8.9648]
[1717034419865,2.1943,168.62,168.57,8.9648]
[1717034420264,2.1943,168.62,168.58,2.1948]
[1717034420667,2.1942,168.63,168.58,2.1948]
[1717034420863,2.1942,168.62,168.58,2.1948]
[1717034421057,2.1942,168.62,168.57,8.9648]
[1717034421375,2.1944,168.61,168.56,15.286]
[1717034421979,2.1945,168.6,168.55,2.1951]
[1717034423278,2.1946,168.59,168.54,2.1952]
[1717034423472,2.195,168.57,168.52,13.3706]
[1717034423676,4.389,168.6,168.52,8.9655]
[1717034423856,2.1948,168.58,168.52,2.1955]
[1717034424059,4.389,168.6,168.52,8.9655]
[1717034424275,2.1949,168.58,168.52,8.9655]
[1717034424475,2.1949,168.57,168.52,8.9655]
[1717034424975,2.1948,168.58,168.53,8.9654]
[1717034425481,2.1948,168.58,168.54,6.77]
[1717034428486,2.1948,168.58,168.55,0.30083631]
[1717034428985,2.1947,168.59,168.55,0.30083631]
[1717034429187,2.1947,168.59,168.55,7.07083631]
[1717034431485,2.1947,168.59,168.56,0.33018107]
[1717034431886,2.1948,168.58,168.56,0.33018107]
[1717034432487,2.1948,168.58,168.55,0.33063679]
[1717034432976,2.1948,168.58,168.54,8.9653]
[1717034433174,2.1948,168.58,168.54,6.77]
[1717034433377,2.1946,168.59,168.54,8.9652]
[1717034435787,2.1946,168.59,168.54,15.5861]
[1717034435993,2.1946,168.6,168.56,6.77]
[1717034436571,2.1946,168.6,168.56,13.3909]
[1717034436874,2.1944,168.61,168.56,8.8159]
[1717034437075,2.1944,168.61,168.57,13.3909]
[1717034437889,7.795712,168.62,168.57,15.5857]
[1717034439088,7.795712,168.62,168.58,12.8994]
[1717034443067,7.795712,168.62,168.58,15.0941]
[1717034443888,7.795712,168.62,168.58,6.1294]
[1717034445004,5.601412,168.62,168.59,6.77]
[1717034445995,7.795612,168.62,168.59,6.77]
[1717034446296,5.601412,168.62,168.58,15.0941]
[1717034446674,5.601412,168.62,168.59,6.4185]
[1717034447383,5.601412,168.62,168.59,13.1885]
[1717034450091,5.601412,168.62,168.6,12.8909]
[1717034451081,5.601412,168.62,168.61,6.77]
[1717034451281,5.601412,168.62,168.61,15.1173]
[1717034459701,5.601412,168.62,168.61,2.1944]
[1717034459909,5.601412,168.62,168.6,2.1945]
[1717034460207,5.601412,168.62,168.58,4.3893]
[1717034460208,5.601412,168.62,168.58,8.9647]
[1717034461094,5.601412,168.62,168.54,8.7811]
[1717034461296,2.1944,168.61,168.57,8.9649]
[1717034461690,2.1944,168.61,168.57,2.1949]
[1717034461891,2.1945,168.6,168.56,2.195]
[1717034462097,2.1945,168.6,168.55,8.9651]
[1717034462494,2.1947,168.59,168.54,2.1952]
[1717034462719,2.1947,168.59,168.54,8.9652]
[1717034463093,2.1947,168.59,168.54,2.1952]
[1717034463294,2.1947,168.59,168.54,8.9652]
[1717034464706,2.1946,168.6,168.55,2.1951]
[1717034465516,2.1945,168.6,168.55,2.1951]
[1717034465716,2.1947,168.59,168.54,8.9652]
[1717034466119,2.1947,168.59,168.54,2.1952]
[1717034466321,2.1947,168.59,168.54,8.9652]
[1717034466616,2.1946,168.6,168.55,2.1951]
[1717034467196,2.1946,168.6,168.55,8.9651]
[1717034469409,2.1944,168.61,168.56,2.195]
[1717034470004,2.1945,168.6,168.55,8.9651]
[1717034470604,5.601412,168.62,168.55,8.9651]
[1717034470814,2.1946,168.6,168.55,8.9651]
[1717034471599,2.1946,168.59,168.55,6.77]
[1717034471819,2.1946,168.59,168.54,8.9652]
[1717034472020,2.1948,168.58,168.53,8.9654]
[1717034472402,2.1948,168.58,168.53,2.1954]
[1717034472916,8.4931,168.59,168.54,2.1953]
[1717034473519,2.1948,168.58,168.53,8.9653]
[1717034474709,2.1954,168.53,168.48,8.7701]
[1717034474911,2.1952,168.55,168.5,2.1958]
[1717034476233,6.4997,168.54,168.49,2.1959]
[1717034476411,8.695,168.54,168.49,2.1959]
[1717034477621,6.052,168.55,168.47,2.1961]
[1717034477829,8.2475,168.53,168.48,2.196]
[1717034478232,12.822,168.53,168.49,2.1959]
[1717034478533,15.0175,168.53,168.48,2.196]
[1717034478711,15.0175,168.53,168.48,22.196]
[1717034479219,0.59354227,168.49,168.48,22.196]
[1717034481212,0.59354227,168.49,168.48,2.196]
[1717034481613,0.59354227,168.49,168.47,2.1961]
[1717034481816,0.59354227,168.49,168.46,2.1963]
[1717034482229,0.59354227,168.49,168.47,2.1962]
[1717034483231,0.59354227,168.49,168.47,2.4957336]
[1717034483530,0.59354227,168.49,168.47,9.2657336]
[1717034484325,0.59354227,168.49,168.47,8.9662]
[1717034484707,0.59354227,168.49,168.47,2.1962]
[1717034485213,0.59354227,168.49,168.47,0.29948026]
[1717034486112,0.59354227,168.49,168.47,7.06948026]
[1717034487027,0.59354227,168.49,168.48,6.77]
[1717034487410,0.59354227,168.49,168.47,6.77]
[1717034487818,0.59354227,168.49,168.46,2.1963]
[1717034488018,0.59354227,168.49,168.46,8.9663]
[1717034489240,0.59354227,168.49,168.48,6.77]
[1717034489423,0.59354227,168.49,168.48,8.9661]
[1717034490537,0.59354227,168.49,168.48,26.7055]
[1717034490930,0.59354227,168.49,168.48,53.2938]
[1717034493849,0.59354227,168.49,168.48,46.7055]
[1717034494834,0.59354227,168.49,168.48,39.9355]
[1717034495828,0.59354227,168.49,168.48,62.0782]
[1717034496146,5.601412,168.54,168.53,2.1954]
[1717034496451,5.601412,168.54,168.53,8.9654]
[1717034496646,5.601412,168.54,168.53,13.3563]
[1717034496833,5.601412,168.54,168.53,48.7244]
[1717034497951,5.601412,168.54,168.53,42.1381]
[1717034499252,5.601412,168.54,168.53,33.3563]
[1717034499549,5.601412,168.54,168.53,28.9654]
[1717034502038,5.601412,168.54,168.53,33.3563]
[1717034504568,5.601412,168.54,168.53,48.7244]
[1717034505645,5.601412,168.54,168.53,55.2345]
[1717034505847,18.3287,168.64,168.59,2.1945]
[1717034506044,24.5217,168.64,168.59,8.9645]
[1717034508647,24.5217,168.64,168.6,6.77]
[1717034508846,24.5217,168.64,168.59,2.1945]
[1717034509046,24.5217,168.64,168.59,8.9645]
[1717034509950,8.387,168.64,168.59,8.9645]
[1717034510464,8.387,168.64,168.6,6.77]
[1717034511249,8.387,168.64,168.6,8.9645]
[1717034511561,30.6549,168.68,168.62,6.77]
[1717034511562,2.1937,168.66,168.62,6.77]
[1717034511769,2.1936,168.67,168.62,8.9642]
[1717034512158,2.1936,168.67,168.63,6.77]
[1717034513568,2.1936,168.67,168.64,0.69514567]
[1717034513866,25.8767,168.72,168.64,0.69514567]
[1717034514069,2.1934,168.69,168.64,9.65904567]
[1717034514269,2.1934,168.69,168.65,0.69687498]
[1717034514450,8.8514,168.69,168.65,0.69687498]
[1717034514652,2.1935,168.68,168.65,0.69687498]
[1717034516672,2.1935,168.68,168.65,7.46687498]
[1717034516881,7.141202,168.73,168.65,6.77]
[1717034517063,7.141202,168.73,168.62,13.1654]
[1717034517064,2.1931,168.71,168.67,6.77]
[1717034517261,2.1931,168.71,168.67,8.9635]
[1717034517459,2.1931,168.71,168.68,0.69712812]
[1717034518254,2.1931,168.71,168.67,8.9635]
[1717034518460,2.1932,168.7,168.66,8.9637]
[1717034519158,0.59290882,168.67,168.66,8.9637]
[1717034521373,0.59290882,168.67,168.66,28.9637]
[1717034522955,0.59290882,168.67,168.66,33.3512]
[1717034523659,0.59290882,168.67,168.66,48.7074]
[1717034524054,0.59290882,168.67,168.66,42.1262]
[1717034525875,0.59290882,168.67,168.66,48.7074]
[1717034527960,0.59290882,168.67,168.66,42.1262]
[1717034529663,0.59290882,168.67,168.66,48.7074]
[1717034529861,0.483202,168.73,168.69,2.1932]
[1717034530062,0.483202,168.73,168.7,2.1932]
[1717034531668,0.483202,168.73,168.69,2.1933]
[1717034531981,2.676002,168.73,168.69,2.1933]
[1717034532389,0.483202,168.73,168.69,2.1933]
[1717034533158,0.483202,168.73,168.7,2.1932]
[1717034533890,0.483202,168.73,168.69,4.3866]
[1717034534183,0.483202,168.73,168.71,2.1931]
[1717034534760,0.483202,168.73,168.7,20.0]
[1717034534761,0.483202,168.73,168.7,22.1931]
[1717034534966,0.483202,168.73,168.7,2.1931]
[1717034535683,0.483202,168.73,168.71,2.1931]
[1717034536680,0.483202,168.73,168.72,2.1929]
[1717034538587,6.607402,168.73,168.71,2.193]
[1717034539090,0.483202,168.73,168.71,2.193]
[1717034539292,0.5927331,168.72,168.71,2.193]
[1717034539789,0.5927331,168.72,168.67,0.32247118]
[1717034540179,0.5927331,168.72,168.68,2.1934]
[1717034540375,6.6317,168.71,168.68,2.1934]
[1717034540580,6.6317,168.71,168.67,2.51597118]
[1717034541295,6.6317,168.71,168.67,22.51597118]
[1717034541597,6.6317,168.71,168.68,2.1934]
[1717034542196,6.6317,168.71,168.67,2.51597118]
[1717034542681,2.7857331,168.72,168.68,6.77]
[1717034543588,0.5927331,168.72,168.69,2.1933]
[1717034543977,0.5927331,168.72,168.69,8.9633]
[1717034544490,0.5927331,168.72,168.7,8.9632]
[1717034545297,0.5927331,168.72,168.71,8.9631]
[1717034549689,0.5927331,168.72,168.71,10.45079574]
[1717034554602,0.5927331,168.72,168.71,30.45079574]
[1717034558914,0.5927331,168.72,168.71,28.9631]
[1717034559789,0.5927331,168.72,168.69,2.1932]
[1717034560105,0.5927331,168.72,168.69,8.9632]
[1717034560724,0.5927331,168.72,168.68,2.1934]
[1717034560895,7.1361331,168.72,168.68,2.1934]
[1717034561218,9.3290331,168.72,168.68,2.1934]
[1717034561395,7.1361331,168.72,168.68,2.1934]
[1717034561588,9.3290331,168.72,168.67,2.51597118]
[1717034561905,2.1931,168.71,168.67,0.32247118]
[1717034562080,2.1931,168.71,168.67,7.09247118]
[1717034562280,7.1361331,168.72,168.67,7.09247118]
[1717034562486,9.3291331,168.72,168.67,9.28607118]
[1717034562686,0.5927331,168.72,168.68,6.77]
[1717034562893,0.5927331,168.72,168.69,8.9633]
[1717034563086,0.5927331,168.72,168.7,6.77]
[1717034563708,0.5927331,168.72,168.7,7.93926655]
[1717034564222,0.5927331,168.72,168.69,2.1933]
[1717034564223,0.5927331,168.72,168.69,6.77]
[1717034564696,0.5927331,168.72,168.71,2.1931]
[1717034564899,0.5927331,168.72,168.71,8.9631]
[1717034565525,0.5927331,168.72,168.7,2.1932]
[1717034565897,0.5927331,168.72,168.69,22.1933]
[1717034566912,7.0413331,168.72,168.68,2.1934]
[1717034567399,6.4486,168.71,168.68,2.1934]
[1717034567899,6.4486,168.71,168.67,8.9635]
[1717034568103,6.4486,168.71,168.68,2.1934]
[1717034568810,6.4486,168.71,168.67,8.9635]
[1717034569013,0.5927331,168.72,168.68,8.9633]
[1717034569926,0.5927331,168.72,168.65,8.7751]
[1717034570092,0.5927331,168.72,168.7,8.9632]
[1717034570294,0.56309732,168.72,168.7,8.9632]
[1717034571421,0.56309732,168.72,168.7,2.1932]
[1717034571618,0.56309732,168.72,168.69,2.1933]
[1717034572509,0.483202,168.73,168.72,6.5788]
[1717034572713,0.483202,168.73,168.72,33.1577]
[1717034572917,0.483202,168.73,168.72,39.9277]
[1717034573123,0.483202,168.73,168.72,46.6977]
[1717034574131,0.483202,168.73,168.72,55.4696]
[1717034576319,0.483202,168.73,168.72,33.3488]
[1717034576510,0.483202,168.73,168.72,39.9277]
[1717034576822,0.483202,168.73,168.72,48.6996]
[1717034577228,0.483202,168.73,168.72,55.4696]
[1717034577904,0.483202,168.73,168.72,61.9265]
[1717034578518,0.483202,168.73,168.72,82.2365]
[1717034579318,1.07589997,168.73,168.72,82.2365]
[1717034579630,2.1912,168.86,168.73,60.0]
[1717034579797,2.1912,168.86,168.82,6.77]
[1717034579798,8.674,168.86,168.82,6.77]
[1717034580224,8.674,168.86,168.82,8.9616]
[1717034581311,6.4828,168.86,168.82,8.9616]
[1717034581511,2.1909,168.88,168.83,8.9615]
[1717034581706,8.4949,168.88,168.83,6.77]
[1717034581927,8.4949,168.88,168.83,8.9615]
[1717034582418,6.3959,168.87,168.83,8.9615]
[1717034584022,8.5869,168.87,168.83,6.77]
[1717034585426,8.5869,168.87,168.82,8.9616]
[1717034585720,6.3959,168.87,168.83,8.9615]
[1717034586624,8.5869,168.87,168.83,8.9615]
[1717034586808,8.5869,168.87,168.84,6.77]
[1717034589427,8.5869,168.87,168.83,6.77]
[1717034591111,2.1911,168.86,168.81,8.9617]
[1717034591311,8.2679,168.86,168.81,2.1917]
[1717034591512,6.0768,168.86,168.82,2.1916]
[1717034591712,8.2679,168.86,168.82,6.77]
[1717034592848,6.0768,168.86,168.82,6.77]
[1717034593436,8.2679,168.86,168.82,6.77]
[1717034594514,6.0768,168.86,168.82,8.9616]
[1717034594715,2.191,168.87,168.82,8.9616]
[1717034595012,2.191,168.87,168.83,6.77]
[1717034595713,8.4086,168.87,168.83,6.77]
[1717034595918,2.1911,168.86,168.83,6.77]
[1717034596118,2.1911,168.86,168.81,2.1917]
[1717034596335,2.1911,168.86,168.82,6.77]
[1717034596632,2.1911,168.86,168.82,8.9616]
[1717034597427,8.4086,168.87,168.82,8.9616]
[1717034597925,6.6086,168.85,168.82,8.9616]
[1717034598119,2.191,168.87,168.82,8.9616]
[1717034598321,2.191,168.87,168.83,8.9615]
[1717034600636,2.191,168.87,168.83,6.77]
[1717034601141,2.191,168.87,168.83,8.9615]
[1717034602327,2.191,168.87,168.83,6.77]
[1717034603427,2.191,168.87,168.82,8.9616]
[1717034605536,2.191,168.87,168.86,0.322108]
[1717034606535,8.2243,168.87,168.86,0.322108]
[1717034606837,24.0913,168.87,168.86,0.322108]
[1717034607034,30.8613,168.87,168.86,0.322108]
[1717034607236,24.0913,168.87,168.86,0.322108]
[1717034608338,8.2243,168.87,168.86,0.322108]
[1717034614043,5.8760749,168.87,168.86,0.322108]
[1717034614433,8.0670749,168.87,168.86,0.322108]
[1717034617749,23.8829749,168.87,168.86,0.322108]
[1717034617954,28.2649749,168.87,168.86,0.322108]
[1717034618151,48.2649749,168.87,168.86,0.322108]
[1717034618457,28.2649749,168.87,168.86,0.322108]
[1717034618641,48.2649749,168.87,168.86,0.322108]
[1717034623034,32.4490749,168.87,168.86,0.322108]
[1717034629467,26.573,168.87,168.86,0.322108]
[1717034630264,26.36573384,168.87,168.86,0.322108]
[1717034632461,6.36573384,168.87,168.86,0.322108]
[1717034632664,1.98373384,168.87,168.86,0.322108]
[1717034654802,2.1909,168.88,168.86,0.322108]
[1717034655505,2.191,168.87,168.86,0.322108]
[1717034662108,13.1461,168.87,168.86,0.322108]
[1717034662287,39.9161,168.87,168.86,0.322108]
[1717034662486,22.191,168.87,168.86,0.322108]
[1717034662693,0.7915406,168.89,168.86,0.322108]
[1717034662901,2.1909,168.88,168.86,0.322108]
[1717034663088,2.9822406,168.89,168.86,0.322108]
[1717034663291,2.1909,168.88,168.86,0.322108]
[1717034667096,0.7915406,168.89,168.87,6.77]
[1717034668706,0.7915406,168.89,168.88,6.77]
[1717034670311,0.7915406,168.89,168.87,6.77]
[1717034671115,0.7915406,168.89,168.86,2.513108]
[1717034671315,0.7915406,168.89,168.86,7.092108]
[1717034671496,0.7915406,168.89,168.87,6.77]
[1717034672895,0.7915406,168.89,168.88,6.77]
[1717034674220,0.7915406,168.89,168.88,8.9609]
[1717034678712,0.7915406,168.89,168.88,15.2215]
[1717034682234,0.7915406,168.89,168.88,35.2215]
[1717034682416,0.7915406,168.89,168.88,28.4515]
[1717034682618,0.7915406,168.89,168.88,35.2215]
[1717034686939,0.7915406,168.89,168.88,39.6033]
[1717034687916,0.7915406,168.89,168.88,26.5727]
[1717034688116,0.7915406,168.89,168.88,33.3427]
[1717034690029,0.7915406,168.89,168.88,28.9609]
[1717034690842,0.7915406,168.89,168.88,35.3095]
[1717034691044,0.7915406,168.89,168.88,46.264]
[1717034693819,0.7915406,168.89,168.88,39.494]
[1717034694026,0.7915406,168.89,168.88,46.264]
[1717034694233,0.7915406,168.89,168.88,39.6913]
[1717034696539,0.7915406,168.89,168.88,39.8103]
[1717034696743,6.5674,169.0,168.94,2.19]
[1717034697041,2.1896,168.98,168.95,6.77]
[1717034697424,2.1895,168.99,168.95,2.1899]
[1717034697737,2.1895,168.99,168.95,8.9599]
[1717034700752,2.1896,168.98,168.94,2.19]
[1717034701046,2.1896,168.98,168.94,8.96]
[1717034701235,2.1895,168.99,168.94,8.96]
[1717034702247,2.1896,168.98,168.94,6.77]
[1717034702455,2.1895,168.99,168.94,8.96]
[1717034703852,2.1895,168.99,168.95,2.1899]
[1717034704853,2.1893,169.0,168.96,8.9598]
[1717034705431,2.1893,169.0,168.95,8.9599]
[1717034706255,8.5997,169.03,168.93,10.9509]
[1717034706580,0.7915406,169.06,169.04,2.1888]
[1717034706848,0.7915406,169.06,169.02,6.77]
[1717034707037,0.7915406,169.06,169.03,0.31529963]
[1717034707456,0.7915406,169.06,169.01,6.77]
[1717034707640,0.7915406,169.06,169.02,6.77]
[1717034707843,0.7915406,169.06,168.96,31.4597]
[1717034707844,2.1887,169.05,168.99,2.1893]
[1717034708038,0.7915406,169.06,168.98,6.77]
[1717034708234,0.7915406,169.06,168.99,20.0]
[1717034708437,0.7915406,169.06,169.01,6.77]
[1717034708749,0.7915406,169.06,169.02,6.77]
[1717034709248,2.9801406,169.06,169.0,6.77]
[1717034709457,2.1887,169.05,168.99,8.9594]
[1717034709835,0.7915406,169.06,169.01,6.77]
[1717034710034,0.7915406,169.06,169.01,8.9592]
[1717034711050,0.7915406,169.06,169.01,6.77]
[1717034711240,0.7915406,169.06,169.01,8.9591]
[1717034711944,0.7915406,169.06,169.02,7.19268044]
[1717034712163,0.7915406,169.06,169.04,2.1888]
[1717034712338,0.7915406,169.06,169.05,6.77]
[1717034712534,0.7915406,169.06,169.05,7.19260543]
[1717034712963,0.7915406,169.06,169.05,6.77]
[1717034713141,0.7915406,169.06,168.98,6.1822]
[1717034713339,0.7915406,169.06,169.01,8.9591]
[1717034713545,0.7915406,169.06,169.02,20.0]
[1717034713853,0.7915406,169.06,169.05,2.1887]
[1717034714036,0.7915406,169.06,169.05,22.1887]
[1717034714443,0.7915406,169.06,169.05,28.9587]
[1717034715166,0.7915406,169.06,169.05,22.1887]
[1717034715469,0.7915406,169.06,169.05,28.9587]
[1717034716864,0.7915406,169.06,169.05,33.3361]
[1717034717042,0.7915406,169.06,169.05,46.4419]
[1717034717534,4.3731,169.22,169.09,8.7522]
[1717034717736,4.3731,169.22,169.13,6.77]
[1717034717946,15.046,169.19,169.14,2.1874]
[1717034718146,6.5589,169.24,169.15,2.1873]
[1717034718332,2.1867,169.21,169.16,2.1872]
[1717034718536,8.9568,169.2,169.14,8.9574]
[1717034718740,2.1868,169.2,169.15,2.1873]
[1717034718968,2.1868,169.2,169.15,8.9573]
[1717034719259,2.1869,169.19,169.13,6.77]
[1717034719438,2.1869,169.19,169.14,22.1874]
[1717034719851,2.1868,169.2,169.15,2.1873]
[1717034720742,2.1866,169.21,169.16,2.1872]
[1717034720948,2.1865,169.22,169.17,2.1871]
[1717034721306,6.77,169.26,169.22,2.1865]
[1717034721450,6.77,169.23,169.19,2.1867]
[1717034721645,6.1291,169.23,169.14,6.1227]
[1717034721840,6.1291,169.22,169.14,6.77]
[1717034722046,2.1868,169.2,169.15,2.1873]
[1717034722241,6.0037,169.19,169.1,4.3758]
[1717034722450,2.1872,169.16,169.11,2.1878]
[1717034722649,2.1872,169.16,169.09,6.1227]
[1717034722650,6.0037,169.19,169.1,6.5641]
[1717034722855,6.0037,169.19,169.15,2.1873]
[1717034724248,14.9606,169.19,169.13,8.9575]
[1717034724463,14.9606,169.19,169.13,6.77]
[1717034724842,14.9606,169.19,169.14,2.1875]
[1717034725366,8.1906,169.19,169.13,8.9576]
[1717034725556,10.7233,169.23,169.14,6.77]
[1717034725757,6.77,169.22,169.15,8.9573]
[1717034725957,6.77,169.22,169.16,2.1872]
[1717034726155,6.77,169.22,169.16,8.9572]
[1717034726464,2.1867,169.21,169.16,8.9572]
[1717034727774,2.1865,169.22,169.17,2.1871]
[1717034727951,6.0652,169.27,169.18,6.77]
[1717034728147,2.1861,169.25,169.2,2.1867]
[1717034729155,2.1862,169.24,169.19,8.9568]
[1717034729358,8.6652,169.23,169.18,2.1869]
[1717034729559,6.4789,169.23,169.18,2.1869]
[1717034732154,8.6652,169.23,169.18,2.1869]
[1717034732349,2.1862,169.24,169.19,2.1868]
[1717034732572,8.3934,169.24,169.19,2.1868]
[1717034733061,8.3934,169.24,169.18,2.1869]
[1717034733670,8.3934,169.24,169.19,2.1868]